2CCN - Level 2 Cost Centre Name,,9CCN - Level 9 Cost Centre Name,9CCC - Level 9 Cost Centre Code,9AN - Level 9 Account Name,9AC - Level 9 Account Code,Date posted,Date of transaction,Merchant Name,Merchant City,Merchant State,Merchant Zip Code,Originating Account Name,Originating Account Number,MCC/SIC Code,MCC Description,Original Amount,Currency,Conversion Rate,Billed Amount,Debit Credit,Reference Number,Statement Cycle,Account Name
Gloucester City Council,23UE,Museum of Gloucester,MU002,General Supplies/Materials,3025,04/10/2017,03/10/2017,THE WORKS,GLOUCESTER,,GL1 2NG,REDACTED,556*********2362,5310,DISCOUNT STORES,22,Pound Sterling (826),1.000000000,22,Debit,05230657277180075139554,02/11/2017,GLOUCESTER CC
Gloucester City Council,23UE,Museum of Gloucester,MU002,Catering Provisions,3103,09/10/2017,07/10/2017,ASDA SUPERSTORE,GLOUCESTER,GBR,GL1 1DS,REDACTED,556*********2362,5411,"GROCERY STORES, SUPERMARKETS",2.96,Pound Sterling (826),1.000000000,2.96,Debit,15377757281000645141084,02/11/2017,GLOUCESTER CC
Gloucester City Council,23UE,Museum of Gloucester,MU002,General Supplies/Materials,3025,12/10/2017,11/10/2017,FIRSTAID4LESS.CO.UK,INTERNET,GBR,BH15 2AF,REDACTED,556*********2362,5999,MISCELLANEOUS AND RETAIL STORES,22.5,Pound Sterling (826),1.000000000,22.5,Debit,25425157285030111731282,02/11/2017,GLOUCESTER CC
Gloucester City Council,23UE,Museum of Gloucester,MU002,General Supplies/Materials,3025,12/10/2017,11/10/2017,STEPHENS ELECTRICS,GLOUCESTER,,GL1 1RA,REDACTED,556*********2362,5722,HOUSEHOLD APPLIANCE STORES,45,Pound Sterling (826),1.000000000,45,Debit,55504437284110250827204,02/11/2017,GLOUCESTER CC
Gloucester City Council,23UE,Gloucester Life Museum,MU005,Catering Provisions,3103,12/10/2017,11/10/2017,TESCO STORES (6819),GLOUCESTER,GBR,GL1 1TP,REDACTED,556*********2362,5411,"GROCERY STORES, SUPERMARKETS",2.98,Pound Sterling (826),1.000000000,2.98,Debit,55377757285030348729317,02/11/2017,GLOUCESTER CC
Gloucester City Council,23UE,Gloucester Life Museum,MU005,Catering Provisions,3103,23/10/2017,21/10/2017,ASDA SUPERSTORE,GLOUCESTER,GBR,GL1 1DS,REDACTED,556*********2362,5411,"GROCERY STORES, SUPERMARKETS",34.01,Pound Sterling (826),1.000000000,34.01,Debit,15377757295000633520467,02/11/2017,GLOUCESTER CC
Gloucester City Council,23UE,Managing Director & Directors,MT001,Conference Fees,0553,02/11/2017,01/11/2017,KENT HOTELS LIMITED,Manchester,,,REDACTED,471*********7903,7011,"LODGING, HOTELS, MOTELS, RESORTS",107.8,Pound Sterling (826),1.000000000,107.8,Debit,74007067306920001913620,02/11/2017,GLOUCESTER CC
Gloucester City Council,23UE,Countryside Unit,EP003,General Supplies/Materials,3025,09/10/2017,08/10/2017,COUNTRYWIDEFARMERS PLC,GLOUCESTER,,GL1 2RR,REDACTED,556*********6734,0763,AGRICULTURAL COOPERATIVES,27.98,Pound Sterling (826),1.000000000,27.98,Debit,55504437281071292776903,02/11/2017,GLOUCESTER CC
Gloucester City Council,23UE,Countryside Unit,EP003,General Supplies/Materials,3025,20/10/2017,19/10/2017,AMAZON UK PRIME AMZN.C,AMZN.CO.UK/PM,LUX,,REDACTED,556*********6734,5968,CONTINUITY/SUBSCRIPTION MERCHANTS,7.99,Pound Sterling (826),1.000000000,7.99,Debit,85389247292741363433025,02/11/2017,GLOUCESTER CC
Gloucester City Council,23UE,Guildhall Bar & Caf�,GH005,Catering Provisions,3103,18/10/2017,17/10/2017,BOOKER LIMITED GLOUCES,GLOUCESTER,GBR,GL4 3RT,REDACTED,556*********1155,5811,CATERERS,27.13,Pound Sterling (826),1.000000000,27.13,Debit,55184227290892912755592,02/11/2017,GLOUCESTER CC
Gloucester City Council,23UE,Gloucester Life Museum,MU005,Catering Provisions,3103,23/10/2017,20/10/2017,BOOKER LIMITED GLOUCES,GLOUCESTER,GBR,GL4 3RT,REDACTED,556*********1155,5811,CATERERS,161.95,Pound Sterling (826),1.000000000,161.95,Debit,55184227293892945348743,02/11/2017,GLOUCESTER CC
Gloucester City Council,23UE,Guildhall Bar & Caf�,GH005,Catering Provisions,3103,23/10/2017,20/10/2017,HOLLAND & BARRETT,GLOUCESTER,,GL1 1PD,REDACTED,556*********1155,5999,MISCELLANEOUS AND RETAIL STORES,1.99,Pound Sterling (826),1.000000000,1.99,Debit,05230657294630071284993,02/11/2017,GLOUCESTER CC
Gloucester City Council,23UE,Guildhall Bar & Caf�,GH005,Catering Provisions,3103,24/10/2017,23/10/2017,SAINSBURYS 0771,GLOUCESTER,GBR,GL1 2AG,REDACTED,556*********1155,5411,"GROCERY STORES, SUPERMARKETS",42.5,Pound Sterling (826),1.000000000,42.5,Debit,35425157297010224770372,02/11/2017,GLOUCESTER CC
Gloucester City Council,23UE,Guildhall Bar & Caf�,GH005,Catering Provisions,3103,24/10/2017,23/10/2017,ICELAND,GLOUCESTER,GBR,GL1 1SA,REDACTED,556*********1155,5411,"GROCERY STORES, SUPERMARKETS",12,Pound Sterling (826),1.000000000,12,Debit,25377757297010087873939,02/11/2017,GLOUCESTER CC
Gloucester City Council,23UE,Guildhall Bar & Caf�,GH005,Catering Provisions,3103,24/10/2017,23/10/2017,TESCO STORES (6819),GLOUCESTER,GBR,GL1 1TP,REDACTED,556*********1155,5411,"GROCERY STORES, SUPERMARKETS",2.2,Pound Sterling (826),1.000000000,2.2,Debit,45377757297010325843460,02/11/2017,GLOUCESTER CC
Gloucester City Council,23UE,Guildhall Bar & Caf�,GH005,Catering Provisions,3103,24/10/2017,23/10/2017,TESCO STORES 6819,GLOUCESTER,GBR,GL1 1TP,REDACTED,556*********1155,5411,"GROCERY STORES, SUPERMARKETS",3.1,Pound Sterling (826),1.000000000,3.1,Debit,45377757297010325836720,02/11/2017,GLOUCESTER CC
Gloucester City Council,23UE,Guildhall Bar & Caf�,GH005,Catering Provisions,3103,25/10/2017,24/10/2017,ICELAND,GLOUCESTER,GBR,GL1 1SA,REDACTED,556*********1155,5411,"GROCERY STORES, SUPERMARKETS",8.95,Pound Sterling (826),1.000000000,8.95,Debit,35377757298020122827111,02/11/2017,GLOUCESTER CC
Gloucester City Council,23UE,Guildhall Bar & Caf�,GH005,Catering Provisions,3103,30/10/2017,27/10/2017,TESCO STORES 2581,GLOUCESTER,GBR,GL1 2SG,REDACTED,556*********1155,5411,"GROCERY STORES, SUPERMARKETS",8,Pound Sterling (826),1.000000000,8,Debit,45377757301050311512285,02/11/2017,GLOUCESTER CC
Gloucester City Council,23UE,Guildhall Bar & Caf�,GH005,Catering Provisions,3103,30/10/2017,27/10/2017,TESCO STORES 5363,GLOUCESTER,GBR,GL3 4AA,REDACTED,556*********1155,5411,"GROCERY STORES, SUPERMARKETS",49.29,Pound Sterling (826),1.000000000,49.29,Debit,55377757301050391081994,02/11/2017,GLOUCESTER CC
Gloucester City Council,23UE,Guildhall Bar & Caf�,GH005,Catering Provisions,3103,01/11/2017,31/10/2017,ASDA SUPERSTORE,GLOUCESTER,GBR,GL1 1DS,REDACTED,556*********1155,5411,"GROCERY STORES, SUPERMARKETS",32.39,Pound Sterling (826),1.000000000,32.39,Debit,45377757305070222428674,02/11/2017,GLOUCESTER CC
Gloucester City Council,23UE,TIC Trading,TI003,Supplies For Resale,3020,02/11/2017,01/11/2017,ROYAL MAIL ONLINE SHOP,INTERNET,GBR,W1T 1HQ,REDACTED,556*********8997,9402,POSTAGE STAMPS,691,Pound Sterling (826),1.000000000,691,Debit,25425157306080059386479,02/11/2017,GLOUCESTER CC
Gloucester City Council,23UE,Members Support,DS002,Public Transport - Staff,2402,10/10/2017,09/10/2017,Trainline,London,GBR,1445,REDACTED,556*********3029,4112,PASSENGER RAILWAYS,28.61,Pound Sterling (826),1.000000000,28.61,Debit,85130087282740917106826,02/11/2017,GLOUCESTER CC
Gloucester City Council,23UE,External Communications,CM001,Advertising & Publicity,3404,01/11/2017,31/10/2017,FACEBK WMX7WDJKW2,fb.me/ads,IRL,2,REDACTED,556*********3029,7311,ADVERTISING SERVICES,15,Pound Sterling (826),1.000000000,15,Debit,15265677304591062921238,02/11/2017,GLOUCESTER CC
Gloucester City Council,23UE,Members Support,DS002,Public Transport - Staff,2402,02/11/2017,01/11/2017,Trainline,London,GBR,1445,REDACTED,556*********3029,4112,PASSENGER RAILWAYS,177.48,Pound Sterling (826),1.000000000,177.48,Debit,85130087305743735159202,02/11/2017,GLOUCESTER CC
Gloucester City Council,23UE,Homelessness,HS002,B&B Payments,1303,03/10/2017,02/10/2017,TRAVELODGE GB0000,THAME,,OX9 3AT,REDACTED,556*********6959,3615,TRAVELODGE,471,Pound Sterling (826),1.000000000,471,Debit,55504437275298126230355,02/11/2017,GLOUCESTER CC
Gloucester City Council,23UE,Homelessness,HS002,B&B Payments,1303,03/10/2017,02/10/2017,TRAVELODGE GB0000,THAME,,OX9 3AT,REDACTED,556*********6959,3615,TRAVELODGE,231,Pound Sterling (826),1.000000000,231,Debit,55504437275298126129177,02/11/2017,GLOUCESTER CC
Gloucester City Council,23UE,Homelessness,HS002,B&B Payments,1303,04/10/2017,03/10/2017,TRAVELODGE GB0000,THAME,,OX9 3AT,REDACTED,556*********6959,3615,TRAVELODGE,924,Pound Sterling (826),1.000000000,924,Debit,55504437276298135062319,02/11/2017,GLOUCESTER CC
Gloucester City Council,23UE,Homelessness,HS002,B&B Payments,1303,04/10/2017,03/10/2017,TRAVELODGE GB0000,THAME,,OX9 3AT,REDACTED,556*********6959,3615,TRAVELODGE,447,Pound Sterling (826),1.000000000,447,Debit,55504437276298135056394,02/11/2017,GLOUCESTER CC
Gloucester City Council,23UE,Homelessness,HS002,B&B Payments,1303,05/10/2017,04/10/2017,TRAVELODGE GB0000,THAME,,OX9 3AT,REDACTED,556*********6959,3615,TRAVELODGE,69,Pound Sterling (826),1.000000000,69,Debit,55504437277298142692339,02/11/2017,GLOUCESTER CC
Gloucester City Council,23UE,Homelessness,HS002,B&B Payments,1303,06/10/2017,05/10/2017,TRAVELODGE GB0000,THAME,,OX9 3AT,REDACTED,556*********6959,3615,TRAVELODGE,57,Pound Sterling (826),1.000000000,57,Debit,55504437278298148940244,02/11/2017,GLOUCESTER CC
Gloucester City Council,23UE,Homelessness,HS002,B&B Payments,1303,06/10/2017,05/10/2017,TRAVELODGE GB0000,THAME,,OX9 3AT,REDACTED,556*********6959,3615,TRAVELODGE,467,Pound Sterling (826),1.000000000,467,Debit,55504437278298148903846,02/11/2017,GLOUCESTER CC
Gloucester City Council,23UE,Homelessness,HS002,B&B Payments,1303,10/10/2017,09/10/2017,TRAVELODGE GB0000,THAME,,OX9 3AT,REDACTED,556*********6959,3615,TRAVELODGE,1072,Pound Sterling (826),1.000000000,1072,Debit,55504437282298180333427,02/11/2017,GLOUCESTER CC
Gloucester City Council,23UE,Homelessness,HS002,B&B Payments,1303,10/10/2017,09/10/2017,TRAVELODGE GB0000,THAME,,OX9 3AT,REDACTED,556*********6959,3615,TRAVELODGE,700,Pound Sterling (826),1.000000000,700,Debit,55504437282298180377150,02/11/2017,GLOUCESTER CC
Gloucester City Council,23UE,Homelessness,HS002,B&B Payments,1303,10/10/2017,09/10/2017,TRAVELODGE GB0000,THAME,,OX9 3AT,REDACTED,556*********6959,3615,TRAVELODGE,268,Pound Sterling (826),1.000000000,268,Debit,55504437282298180363424,02/11/2017,GLOUCESTER CC
Gloucester City Council,23UE,Homelessness,HS002,B&B Payments,1303,11/10/2017,10/10/2017,TRAVELODGE GB0000,THAME,,OX9 3AT,REDACTED,556*********6959,3615,TRAVELODGE,648,Pound Sterling (826),1.000000000,648,Debit,55504437283298187991325,02/11/2017,GLOUCESTER CC
Gloucester City Council,23UE,Homelessness,HS002,B&B Payments,1303,11/10/2017,10/10/2017,TRAVELODGE GB0000,THAME,,OX9 3AT,REDACTED,556*********6959,3615,TRAVELODGE,523,Pound Sterling (826),1.000000000,523,Debit,55504437283298187896508,02/11/2017,GLOUCESTER CC
Gloucester City Council,23UE,Homelessness,HS002,B&B Payments,1303,13/10/2017,12/10/2017,TRAVELODGE GB0000,THAME,,OX9 3AT,REDACTED,556*********6959,3615,TRAVELODGE,514,Pound Sterling (826),1.000000000,514,Debit,55504437285298101404585,02/11/2017,GLOUCESTER CC
Gloucester City Council,23UE,Homelessness,HS002,B&B Payments,1303,13/10/2017,12/10/2017,TRAVELODGE GB0000,THAME,,OX9 3AT,REDACTED,556*********6959,3615,TRAVELODGE,396,Pound Sterling (826),1.000000000,396,Debit,55504437285298101425754,02/11/2017,GLOUCESTER CC
Gloucester City Council,23UE,Homelessness,HS002,B&B Payments,1303,16/10/2017,13/10/2017,TRAVELODGE GB0000,THAME,,OX9 3AT,REDACTED,556*********6959,3615,TRAVELODGE,408,Pound Sterling (826),1.000000000,408,Debit,55504437286298109706782,02/11/2017,GLOUCESTER CC
Gloucester City Council,23UE,Homelessness,HS002,B&B Payments,1303,17/10/2017,16/10/2017,TRAVELODGE GB0000,THAME,,OX9 3AT,REDACTED,556*********6959,3615,TRAVELODGE,61,Pound Sterling (826),1.000000000,61,Debit,55504437289298132140360,02/11/2017,GLOUCESTER CC
Gloucester City Council,23UE,Rehousing,HS001,Public Transport - Staff,2402,18/10/2017,17/10/2017,Trainline,London,GBR,1445,REDACTED,556*********6959,4112,PASSENGER RAILWAYS,35.24,Pound Sterling (826),1.000000000,35.24,Debit,85130087290741186501440,02/11/2017,GLOUCESTER CC
Gloucester City Council,23UE,Homelessness,HS002,B&B Payments,1303,18/10/2017,17/10/2017,TRAVELODGE GB0000,THAME,,OX9 3AT,REDACTED,556*********6959,3615,TRAVELODGE,164,Pound Sterling (826),1.000000000,164,Debit,55504437290298138970650,02/11/2017,GLOUCESTER CC
Gloucester City Council,23UE,Homelessness,HS002,B&B Payments,1303,18/10/2017,17/10/2017,TRAVELODGE GB0000,THAME,,OX9 3AT,REDACTED,556*********6959,3615,TRAVELODGE,89,Pound Sterling (826),1.000000000,89,Debit,55504437290298138908767,02/11/2017,GLOUCESTER CC
Gloucester City Council,23UE,Homelessness,HS002,B&B Payments,1303,18/10/2017,17/10/2017,TRAVELODGE GB0000,THAME,,OX9 3AT,REDACTED,556*********6959,3615,TRAVELODGE,168,Pound Sterling (826),1.000000000,168,Debit,55504437290298138975493,02/11/2017,GLOUCESTER CC
Gloucester City Council,23UE,Homelessness,HS002,B&B Payments,1303,18/10/2017,17/10/2017,TRAVELODGE GB0000,THAME,,OX9 3AT,REDACTED,556*********6959,3615,TRAVELODGE,168,Pound Sterling (826),1.000000000,168,Debit,55504437290298138975105,02/11/2017,GLOUCESTER CC
Gloucester City Council,23UE,Homelessness,HS002,B&B Payments,1303,19/10/2017,18/10/2017,TRAVELODGE GB0000,THAME,,OX9 3AT,REDACTED,556*********6959,3615,TRAVELODGE,77,Pound Sterling (826),1.000000000,77,Debit,55504437291298144710586,02/11/2017,GLOUCESTER CC
Gloucester City Council,23UE,Homelessness,HS002,B&B Payments,1303,19/10/2017,18/10/2017,TRAVELODGE GB0000,THAME,,OX9 3AT,REDACTED,556*********6959,3615,TRAVELODGE,77,Pound Sterling (826),1.000000000,77,Debit,55504437291298144642813,02/11/2017,GLOUCESTER CC
Gloucester City Council,23UE,Homelessness,HS002,B&B Payments,1303,19/10/2017,18/10/2017,TRAVELODGE GB0000,THAME,,OX9 3AT,REDACTED,556*********6959,3615,TRAVELODGE,370,Pound Sterling (826),1.000000000,370,Debit,55504437291298144641872,02/11/2017,GLOUCESTER CC
Gloucester City Council,23UE,Homelessness,HS002,B&B Payments,1303,20/10/2017,19/10/2017,TRAVELODGE GB0000,THAME,,OX9 3AT,REDACTED,556*********6959,3615,TRAVELODGE,277,Pound Sterling (826),1.000000000,277,Debit,55504437292298150710669,02/11/2017,GLOUCESTER CC
Gloucester City Council,23UE,Homelessness,HS002,B&B Payments,1303,20/10/2017,19/10/2017,TRAVELODGE GB0000,THAME,,OX9 3AT,REDACTED,556*********6959,3615,TRAVELODGE,440,Pound Sterling (826),1.000000000,440,Debit,55504437292298150731400,02/11/2017,GLOUCESTER CC
Gloucester City Council,23UE,Homelessness,HS002,B&B Payments,1303,20/10/2017,19/10/2017,TRAVELODGE GB0000,THAME,,OX9 3AT,REDACTED,556*********6959,3615,TRAVELODGE,515,Pound Sterling (826),1.000000000,515,Debit,55504437292298150716310,02/11/2017,GLOUCESTER CC
Gloucester City Council,23UE,Homelessness,HS002,B&B Payments,1303,20/10/2017,19/10/2017,TRAVELODGE GB0000,THAME,,OX9 3AT,REDACTED,556*********6959,3615,TRAVELODGE,277,Pound Sterling (826),1.000000000,277,Debit,55504437292298150721146,02/11/2017,GLOUCESTER CC
Gloucester City Council,23UE,Homelessness,HS002,B&B Payments,1303,23/10/2017,20/10/2017,TRAVELODGE GB0000,THAME,,OX9 3AT,REDACTED,556*********6959,3615,TRAVELODGE,444,Pound Sterling (826),1.000000000,444,Debit,55504437293298158997119,02/11/2017,GLOUCESTER CC
Gloucester City Council,23UE,Homelessness,HS002,B&B Payments,1303,24/10/2017,23/10/2017,TRAVELODGE GB0000,THAME,,OX9 3AT,REDACTED,556*********6959,3615,TRAVELODGE,251,Pound Sterling (826),1.000000000,251,Debit,55504437296298180273395,02/11/2017,GLOUCESTER CC
Gloucester City Council,23UE,Homelessness,HS002,B&B Payments,1303,24/10/2017,23/10/2017,TRAVELODGE GB0000,THAME,,OX9 3AT,REDACTED,556*********6959,3615,TRAVELODGE,234,Pound Sterling (826),1.000000000,234,Debit,55504437296298180278246,02/11/2017,GLOUCESTER CC
Gloucester City Council,23UE,Homelessness,HS002,B&B Payments,1303,25/10/2017,24/10/2017,TRAVELODGE GB0000,THAME,,OX9 3AT,REDACTED,556*********6959,3615,TRAVELODGE,194,Pound Sterling (826),1.000000000,194,Debit,55504437297298186520186,02/11/2017,GLOUCESTER CC
Gloucester City Council,23UE,Homelessness,HS002,B&B Payments,1303,25/10/2017,24/10/2017,TRAVELODGE GB0000,THAME,,OX9 3AT,REDACTED,556*********6959,3615,TRAVELODGE,1642,Pound Sterling (826),1.000000000,1642,Debit,55504437297298186540226,02/11/2017,GLOUCESTER CC
Gloucester City Council,23UE,Homelessness,HS002,B&B Payments,1303,27/10/2017,26/10/2017,TRAVELODGE GB0000,THAME,,OX9 3AT,REDACTED,556*********6959,3615,TRAVELODGE,338,Pound Sterling (826),1.000000000,338,Debit,55504437299298101768157,02/11/2017,GLOUCESTER CC
Gloucester City Council,23UE,Homelessness,HS002,B&B Payments,1303,27/10/2017,26/10/2017,TRAVELODGE GB0000,THAME,,OX9 3AT,REDACTED,556*********6959,3615,TRAVELODGE,652,Pound Sterling (826),1.000000000,652,Debit,55504437299298101739133,02/11/2017,GLOUCESTER CC
Gloucester City Council,23UE,Homelessness,HS002,B&B Payments,1303,27/10/2017,26/10/2017,TRAVELODGE GB0000,THAME,,OX9 3AT,REDACTED,556*********6959,3615,TRAVELODGE,61,Pound Sterling (826),1.000000000,61,Debit,55504437299298101736667,02/11/2017,GLOUCESTER CC
Gloucester City Council,23UE,Homelessness,HS002,B&B Payments,1303,27/10/2017,26/10/2017,TRAVELODGE GB0000,THAME,,OX9 3AT,REDACTED,556*********6959,3615,TRAVELODGE,328,Pound Sterling (826),1.000000000,328,Debit,55504437299298101730538,02/11/2017,GLOUCESTER CC
Gloucester City Council,23UE,Homelessness,HS002,B&B Payments,1303,27/10/2017,26/10/2017,TRAVELODGE GB0000,THAME,,OX9 3AT,REDACTED,556*********6959,3615,TRAVELODGE,-216,Pound Sterling (826),1.000000000,-216,Credit,55504437299298101740693,02/11/2017,GLOUCESTER CC
Gloucester City Council,23UE,Homelessness,HS002,B&B Payments,1303,31/10/2017,30/10/2017,TRAVELODGE GB0000,THAME,,OX9 3AT,REDACTED,556*********6959,3615,TRAVELODGE,627,Pound Sterling (826),1.000000000,627,Debit,55504437303298132367544,02/11/2017,GLOUCESTER CC
Gloucester City Council,23UE,Homelessness,HS002,B&B Payments,1303,31/10/2017,30/10/2017,TRAVELODGE GB0000,THAME,,OX9 3AT,REDACTED,556*********6959,3615,TRAVELODGE,228,Pound Sterling (826),1.000000000,228,Debit,55504437303298132434732,02/11/2017,GLOUCESTER CC
Gloucester City Council,23UE,Homelessness,HS002,B&B Payments,1303,31/10/2017,30/10/2017,TRAVELODGE GB0000,THAME,,OX9 3AT,REDACTED,556*********6959,3615,TRAVELODGE,376,Pound Sterling (826),1.000000000,376,Debit,55504437303298132376735,02/11/2017,GLOUCESTER CC
Gloucester City Council,23UE,Homelessness,HS002,B&B Payments,1303,01/11/2017,31/10/2017,TRAVELODGE GB0000,THAME,,OX9 3AT,REDACTED,556*********6959,3615,TRAVELODGE,125,Pound Sterling (826),1.000000000,125,Debit,55504437304298141328163,02/11/2017,GLOUCESTER CC
Gloucester City Council,23UE,Homelessness,HS002,B&B Payments,1303,01/11/2017,31/10/2017,TRAVELODGE GB0000,THAME,,OX9 3AT,REDACTED,556*********6959,3615,TRAVELODGE,370,Pound Sterling (826),1.000000000,370,Debit,55504437304298141377608,02/11/2017,GLOUCESTER CC
Gloucester City Council,23UE,Council Streetcare Team,NE002,Public Transport - Staff,2402,03/10/2017,02/10/2017,Trainline,London,GBR,1445,REDACTED,556*********3822,4112,PASSENGER RAILWAYS,28,Pound Sterling (826),1.000000000,28,Debit,85130087275739668172358,02/11/2017,GLOUCESTER CC
Gloucester City Council,23UE,Council Streetcare Team,NE002,Public Transport - Staff,2402,03/10/2017,02/10/2017,Trainline,London,GBR,1445,REDACTED,556*********3822,4112,PASSENGER RAILWAYS,241.13,Pound Sterling (826),1.000000000,241.13,Debit,85130087275739668172796,02/11/2017,GLOUCESTER CC
Gloucester City Council,23UE,Business Support,BI004,Public Transport - Staff,2402,04/10/2017,03/10/2017,Trainline,London,GBR,1445,REDACTED,556*********3822,4112,PASSENGER RAILWAYS,42.13,Pound Sterling (826),1.000000000,42.13,Debit,85130087276739706513422,02/11/2017,GLOUCESTER CC
Gloucester City Council,23UE,Economic Development,ED001,Public Transport - Staff,2402,06/10/2017,05/10/2017,Trainline,London,GBR,1445,REDACTED,556*********3822,4112,PASSENGER RAILWAYS,120.16,Pound Sterling (826),1.000000000,120.16,Debit,85130087278739779957389,02/11/2017,GLOUCESTER CC
Gloucester City Council,23UE,Managing Director & Directors,MT001,Public Transport - Staff,2402,11/10/2017,10/10/2017,Trainline,London,GBR,1445,REDACTED,556*********3822,4112,PASSENGER RAILWAYS,165.95,Pound Sterling (826),1.000000000,165.95,Debit,85130087283740951268648,02/11/2017,GLOUCESTER CC
Gloucester City Council,23UE,Managing Director & Directors,MT001,Public Transport - Staff,2402,18/10/2017,17/10/2017,Trainline,London,GBR,1445,REDACTED,556*********3822,4112,PASSENGER RAILWAYS,64.67,Pound Sterling (826),1.000000000,64.67,Debit,85130087290741190232057,02/11/2017,GLOUCESTER CC
Gloucester City Council,23UE,Homelessness,HS002,B&B Payments,1303,20/10/2017,19/10/2017,TRAVELODGE GB0000,THAME,,OX9 3AT,REDACTED,556*********3822,3615,TRAVELODGE,484,Pound Sterling (826),1.000000000,484,Debit,55504437292298150818348,02/11/2017,GLOUCESTER CC
Gloucester City Council,23UE,Guildhall Bar & Caf�,GH005,Catering Provisions,3103,03/10/2017,02/10/2017,B&M RETAIL LTD,HS GLOUCESTER,,GL1 2DH,REDACTED,556*********8256,5310,DISCOUNT STORES,12.83,Pound Sterling (826),1.000000000,12.83,Debit,05230657276400073077692,02/11/2017,GLOUCESTER CC
Gloucester City Council,23UE,Gloucester Guildhall,GH001,Public Transport - Staff,2402,04/10/2017,03/10/2017,PAYPAL *TRAINLINE,35314369001,GBR,EC1N2TD,REDACTED,556*********8256,4789,TRANSPORTATION SERVICES NOT ELSEWHERE CLASSIFIED,42.5,Pound Sterling (826),1.000000000,42.5,Debit,85130087276739682548483,02/11/2017,GLOUCESTER CC
Gloucester City Council,23UE,Guildhall Bar & Caf�,GH005,Catering Provisions,3103,04/10/2017,03/10/2017,TESCO STORES 5363,GLOUCESTER,GBR,GL3 4AA,REDACTED,556*********8256,5411,"GROCERY STORES, SUPERMARKETS",72.71,Pound Sterling (826),1.000000000,72.71,Debit,45377757277070321184479,02/11/2017,GLOUCESTER CC
Gloucester City Council,23UE,Gloucester Guildhall,GH001,Equipment and Furniture,3001,06/10/2017,05/10/2017,GILLMANS APPLIANCES,GLOUCESTER,,GL1 2SG,REDACTED,556*********8256,5722,HOUSEHOLD APPLIANCE STORES,199.99,Pound Sterling (826),1.000000000,199.99,Debit,55541967278938000551735,02/11/2017,GLOUCESTER CC
Gloucester City Council,23UE,Guildhall Events,GH002,General Supplies/Materials,3025,06/10/2017,05/10/2017,MIPERMIT PARKING-DOM,INTERNET,GBR,SN15 5FD,REDACTED,556*********8256,7523,AUTOMOBILE PARKING LOTS AND GARAGES,10,Pound Sterling (826),1.000000000,10,Debit,25425157279090088330243,02/11/2017,GLOUCESTER CC
Gloucester City Council,23UE,Guildhall Bar & Caf�,GH005,Catering Provisions,3103,06/10/2017,05/10/2017,B&M RETAIL LTD,HS GLOUCESTER,,GL1 2DH,REDACTED,556*********8256,5310,DISCOUNT STORES,5.98,Pound Sterling (826),1.000000000,5.98,Debit,05230657279240071704120,02/11/2017,GLOUCESTER CC
Gloucester City Council,23UE,Guildhall Events,GH002,General Supplies/Materials,3025,09/10/2017,06/10/2017,MERCURE GLOUCESTER,HOTEL 01452 6,,GL4 8ED,REDACTED,556*********8256,7011,"LODGING, HOTELS, MOTELS, RESORTS",200,Pound Sterling (826),1.000000000,200,Debit,05230657280800061470714,02/11/2017,GLOUCESTER CC
Gloucester City Council,23UE,Guildhall Cinema,GH003,Advertising & Publicity,3404,09/10/2017,07/10/2017,FACEBK YPNU8E2MR2,fb.me/ads,IRL,2,REDACTED,556*********8256,7311,ADVERTISING SERVICES,40.02,Pound Sterling (826),1.000000000,40.02,Debit,15265677280555627811547,02/11/2017,GLOUCESTER CC
Gloucester City Council,23UE,Guildhall Events,GH002,General Supplies/Materials,3025,10/10/2017,09/10/2017,MIPERMIT PARKING-DOM,INTERNET,GBR,SN15 5FD,REDACTED,556*********8256,7523,AUTOMOBILE PARKING LOTS AND GARAGES,10,Pound Sterling (826),1.000000000,10,Debit,25425157283010110173423,02/11/2017,GLOUCESTER CC
Gloucester City Council,23UE,Guildhall Bar & Caf�,GH005,Catering Provisions,3103,10/10/2017,09/10/2017,TESCO STORES 6819,GLOUCESTER,GBR,GL1 1TP,REDACTED,556*********8256,5411,"GROCERY STORES, SUPERMARKETS",6,Pound Sterling (826),1.000000000,6,Debit,45377757283010327261907,02/11/2017,GLOUCESTER CC
Gloucester City Council,23UE,Gloucester Guildhall,GH001,Public Transport - Staff,2402,12/10/2017,11/10/2017,GWR GLOUCESTER TO,GLOUCESTER,,GL1 1DE,REDACTED,556*********8256,4112,PASSENGER RAILWAYS,18.8,Pound Sterling (826),1.000000000,18.8,Debit,55504437284161198406692,02/11/2017,GLOUCESTER CC
Gloucester City Council,23UE,Guildhall Events,GH002,Advertising & Publicity,3404,13/10/2017,12/10/2017,WWW.INSTANTPRINT.C,01709 382202,,S63 5DR,REDACTED,556*********8256,7338,QUICK-COPY AND REPRODUCTION SERVICES,49.99,Pound Sterling (826),1.000000000,49.99,Debit,05230657286870076333573,02/11/2017,GLOUCESTER CC
Gloucester City Council,23UE,Guildhall Bar & Caf�,GH005,Catering Provisions,3103,13/10/2017,12/10/2017,ICELAND,GLOUCESTER,GBR,GL1 1SA,REDACTED,556*********8256,5411,"GROCERY STORES, SUPERMARKETS",6.93,Pound Sterling (826),1.000000000,6.93,Debit,35377757286040132737724,02/11/2017,GLOUCESTER CC
Gloucester City Council,23UE,Guildhall Cinema,GH003,General Supplies/Materials,3025,16/10/2017,13/10/2017,PARCEL2GO.COM LTD,BOLTON,,BL3 6BU,REDACTED,556*********8256,4215,"COURIER SERVICES-AIR OR GROUND,FREIGHT FORWARDERS",28.28,Pound Sterling (826),1.000000000,28.28,Debit,05206657288013690017821,02/11/2017,GLOUCESTER CC
Gloucester City Council,23UE,Guildhall Bar & Caf�,GH005,Catering Provisions,3103,19/10/2017,18/10/2017,MARKS&SPENCER PLC,GLOUCESTER,GBR,GL1 1PH,REDACTED,556*********8256,5411,"GROCERY STORES, SUPERMARKETS",5.6,Pound Sterling (826),1.000000000,5.6,Debit,45377757292080233282775,02/11/2017,GLOUCESTER CC
Gloucester City Council,23UE,Museum of Gloucester,MU002,Advertising & Publicity,3404,20/10/2017,19/10/2017,WWW.RIVERSIDEPRINTERS.,INTERNET,GBR,NN15 6XR,REDACTED,556*********8256,2741,MISCELLANEOUS PUBLISHING & PRINTING,24,Pound Sterling (826),1.000000000,24,Debit,25425157293090087831425,02/11/2017,GLOUCESTER CC
Gloucester City Council,23UE,Guildhall Cinema,GH003,General Supplies/Materials,3025,20/10/2017,19/10/2017,Amazon EU,AMAZON.CO.UK,LUX,L2338,REDACTED,556*********8256,5969,ALL OTHER DIRECT MARKETERS,8.02,Pound Sterling (826),1.000000000,8.02,Debit,55204727292200416721867,02/11/2017,GLOUCESTER CC
Gloucester City Council,23UE,Guildhall Bar & Caf�,GH005,Catering Provisions,3103,20/10/2017,19/10/2017,ICELAND,GLOUCESTER,GBR,GL1 1SA,REDACTED,556*********8256,5411,"GROCERY STORES, SUPERMARKETS",7.92,Pound Sterling (826),1.000000000,7.92,Debit,35377757293090129130988,02/11/2017,GLOUCESTER CC
Gloucester City Council,23UE,Gloucester Guildhall,GH001,Public Transport - Staff,2402,23/10/2017,20/10/2017,GWR GLOUCESTER TO,GLOUCESTER,,GL1 1DE,REDACTED,556*********8256,4112,PASSENGER RAILWAYS,9.4,Pound Sterling (826),1.000000000,9.4,Debit,55504437293161162818210,02/11/2017,GLOUCESTER CC
Gloucester City Council,23UE,Guildhall Events,GH002,Advertising & Publicity,3404,23/10/2017,20/10/2017,WWW.INSTANTPRINT.C,01709 382202,,S63 5DR,REDACTED,556*********8256,7338,QUICK-COPY AND REPRODUCTION SERVICES,25.99,Pound Sterling (826),1.000000000,25.99,Debit,05230657294910078204909,02/11/2017,GLOUCESTER CC
Gloucester City Council,23UE,Guildhall Cinema,GH003,Advertising & Publicity,3404,24/10/2017,23/10/2017,WWW.INSTANTPRINT.C,01709 382202,,S63 5DR,REDACTED,556*********8256,7338,QUICK-COPY AND REPRODUCTION SERVICES,194,Pound Sterling (826),1.000000000,194,Debit,05230657297660078339695,02/11/2017,GLOUCESTER CC
Gloucester City Council,23UE,Guildhall Bar & Caf�,GH005,Catering Provisions,3103,30/10/2017,27/10/2017,SAINSBURYS SACAT 0771,GLOUCESTER,GBR,GL1 2AG,REDACTED,556*********8256,5411,"GROCERY STORES, SUPERMARKETS",2,Pound Sterling (826),1.000000000,2,Debit,25425157301050120464782,02/11/2017,GLOUCESTER CC
Gloucester City Council,23UE,Guildhall Cinema,GH003,Advertising & Publicity,3404,31/10/2017,30/10/2017,WWW.INSTANTPRINT.C,01709 382202,,S63 5DR,REDACTED,556*********8256,7338,QUICK-COPY AND REPRODUCTION SERVICES,17.99,Pound Sterling (826),1.000000000,17.99,Debit,05230657304030074171180,02/11/2017,GLOUCESTER CC
Gloucester City Council,23UE,Guildhall Events,GH002,Advertising & Publicity,3404,01/11/2017,31/10/2017,FACEBK 8AWWCEWLR2,fb.me/ads,IRL,2,REDACTED,556*********8256,7311,ADVERTISING SERVICES,87.76,Pound Sterling (826),1.000000000,87.76,Debit,15265677304419260391246,02/11/2017,GLOUCESTER CC
Gloucester City Council,23UE,Guildhall Cinema,GH003,Advertising & Publicity,3404,01/11/2017,31/10/2017,FACEBK ZCLR5EN5M2,fb.me/ads,IRL,2,REDACTED,556*********8256,7311,ADVERTISING SERVICES,65.28,Pound Sterling (826),1.000000000,65.28,Debit,15265677304477330871241,02/11/2017,GLOUCESTER CC
Gloucester City Council,23UE,Guildhall Events,GH002,General Supplies/Materials,3025,01/11/2017,31/10/2017,MIPERMIT PARKING-DOM,INTERNET,GBR,SN15 5FD,REDACTED,556*********8256,7523,AUTOMOBILE PARKING LOTS AND GARAGES,10,Pound Sterling (826),1.000000000,10,Debit,25425157305070100909891,02/11/2017,GLOUCESTER CC
Gloucester City Council,23UE,Guildhall Bar & Caf�,GH005,Catering Provisions,3103,02/11/2017,01/11/2017,ICELAND,GLOUCESTER,GBR,GL1 1SA,REDACTED,556*********8256,5411,"GROCERY STORES, SUPERMARKETS",2.97,Pound Sterling (826),1.000000000,2.97,Debit,35377757306080171517955,02/11/2017,GLOUCESTER CC
Gloucester City Council,23UE,Civica Admin Charges,BI002,Professional Advice/Consultants fees,3952,12/10/2017,11/10/2017,HMCOURTS-SERVICE.G,01452420100,,GL1 2ZG,REDACTED,556*********3063,9222,FINES,2049,Pound Sterling (826),1.000000000,2049,Debit,05230657285820073208816,02/11/2017,GLOUCESTER CC
Gloucester City Council,23UE,Financial Services,FS004,Public Transport - Staff,2402,12/10/2017,11/10/2017,GWR WEBSALES,SWINDON,,SN1 1HL,REDACTED,556*********3063,4112,PASSENGER RAILWAYS,18.8,Pound Sterling (826),1.000000000,18.8,Debit,55504437284160348749456,02/11/2017,GLOUCESTER CC
Gloucester City Council,23UE,Elections,DS004,Professional Advice/Consultants fees,3952,12/10/2017,11/10/2017,WWW.ICO.GOV.UK,03031231113 W,,SK9 5AF,REDACTED,556*********3063,9399,GOVERNMENT SERVICES NOT ELSEWHERE CLASSIFIED,-465,Pound Sterling (826),1.000000000,-465,Credit,05230657285590073191771,02/11/2017,GLOUCESTER CC
Gloucester City Council,23UE,Vehicles,CT002,Hire of Vehicles/Plant,2301,13/10/2017,12/10/2017,ENTERPRISE,01452 419222,,GL2 5HY,REDACTED,556*********3063,3405,ENTERPRISE RENT-A-CAR,425.04,Pound Sterling (826),1.000000000,425.04,Debit,05230657285750078671454,02/11/2017,GLOUCESTER CC
Gloucester City Council,23UE,Business Transformation,BI006,"ICT Software, Licences & Support",3521,13/10/2017,12/10/2017,WWW.JA.NET,012358222311,,OX11 0SG,REDACTED,556*********3063,8699,MEMBERSHIP ORGANIZATIONS NOT ELSEWHERE CLASSIFIED,192,Pound Sterling (826),1.000000000,192,Debit,55504437285295354350283,02/11/2017,GLOUCESTER CC
Gloucester City Council,23UE,Business Transformation,BI006,General Supplies/Materials,3025,18/10/2017,17/10/2017,Amazon UK Marketplace,800-279-6620,LUX,L2338,REDACTED,556*********3063,5942,BOOK STORES,26.15,Pound Sterling (826),1.000000000,26.15,Debit,55204727290200934388563,02/11/2017,GLOUCESTER CC
Gloucester City Council,23UE,Docks Complex - Services,AM006,Equipment and Furniture,3001,23/10/2017,20/10/2017,WICKES,GLOUCESTER,,GL2 5DX,REDACTED,556*********3063,5211,LUMBER AND BUILDING MATERIALS STORES,4.99,Pound Sterling (826),1.000000000,4.99,Debit,05230657294620078358148,02/11/2017,GLOUCESTER CC
Gloucester City Council,23UE,Business Transformation,BI006,ICT New Hardware,3523,24/10/2017,23/10/2017,WWW.HOTPLUGS.CO.UK,07737107861,,ME2 2GE,REDACTED,556*********3063,5734,COMPUTER SOFTWARE STORES,142.8,Pound Sterling (826),1.000000000,142.8,Debit,55504437296174180179454,02/11/2017,GLOUCESTER CC
Gloucester City Council,23UE,Financial Services,FS004,External Training Course Fees,0550,27/10/2017,26/10/2017,WWW.CIMAGLOBAL.COM,020 8849 2251,,EC2M 2RB,REDACTED,556*********3063,8220,"COLLEGES, UNIVERSITIES, PROFESSIONAL SCHOOLS AND JUNIOR COLLEGES",77,Pound Sterling (826),1.000000000,77,Debit,05230657300190070993658,02/11/2017,GLOUCESTER CC
Gloucester City Council,23UE,Financial Services,FS004,Public Transport - Staff,2402,31/10/2017,30/10/2017,Virgin Trains,London,GBR,1445,REDACTED,556*********3063,4112,PASSENGER RAILWAYS,126,Pound Sterling (826),1.000000000,126,Debit,85130087303743648018638,02/11/2017,GLOUCESTER CC
Gloucester City Council,23UE,Civic Admin & Hospitality,DS001,Hospitality & Refreshments,3104,01/11/2017,31/10/2017,TESCO STORE 2581,GLOUCESTER,GBR,GL1 2SR,REDACTED,556*********3063,5411,"GROCERY STORES, SUPERMARKETS",7.2,Pound Sterling (826),1.000000000,7.2,Debit,45377757305070262611353,02/11/2017,GLOUCESTER CC
Gloucester City Council,23UE,Civica Admin Charges,BI002,Professional Advice/Consultants fees,3952,01/11/2017,31/10/2017,HMCOURTS-SERVICE.G,01452420100,,GL1 2ZG,REDACTED,556*********3063,9222,FINES,2232,Pound Sterling (826),1.000000000,2232,Debit,05230657305960072167013,02/11/2017,GLOUCESTER CC
